bitfinex-derivatives/quotes_SOLF0:USTF0_20250907
["timestamp","ask_amount","ask_price","bid_price","bid_amount"]
[1757249572728,8.1,203.96,203.91,8.94258707]
[1757249572929,8.1,203.96,203.92,4.38136873]
[1757249573131,8.1,203.96,203.87,2.59]
[1757249573430,8.1,203.96,203.89,2.58]
[1757249573630,8.1,203.96,203.9,8.94235661]
[1757249573830,8.1,203.96,203.91,8.94235661]
[1757249574030,8.1,203.96,203.92,4.38125582]
[1757249574234,8.1,203.96,203.89,2.58]
[1757249574532,8.1,203.96,203.9,8.94275508]
[1757249574733,8.1,203.96,203.91,8.94275508]
[1757249574934,8.1,203.96,203.92,4.38145105]
[1757249575233,8.1,203.96,203.89,2.58]
[1757249575533,8.1,203.96,203.9,8.94315491]
[1757249575735,8.1,203.96,203.91,4.38164662]
[1757249575935,8.1,203.96,203.89,2.58]
[1757249576129,8.1,203.96,203.9,8.94315497]
[1757249576331,8.1,203.96,203.91,4.38164665]
[1757249576527,8.1,203.96,203.89,2.58]
[1757249576733,8.1,203.96,203.9,8.94284504]
[1757249577036,8.1,203.96,203.91,4.3814948]
[1757249577335,8.1,203.96,203.89,2.58]
[1757249577535,8.1,203.96,203.9,4.38186464]
[1757249577735,8.1,203.96,203.91,4.38186464]
[1757249577930,8.1,203.96,203.89,2.58]
[1757249578127,8.1,203.96,203.9,4.38186489]
[1757249578433,8.1,203.96,203.91,4.38186489]
[1757249578627,8.1,203.96,203.89,2.58]
[1757249578829,8.1,203.96,203.9,4.38154241]
[1757249579026,8.1,203.96,203.91,4.38154241]
[1757249579226,118.46,203.95,203.89,2.58]
[1757249579426,118.46,203.95,203.9,4.38127227]
[1757249579636,118.46,203.95,203.89,2.58]
[1757249579637,118.46,203.95,203.91,4.38127227]
[1757249579933,7.99,203.94,203.89,2.58]
[1757249580132,7.99,203.94,203.86,77.64155342]
[1757249580133,7.99,203.94,203.9,4.38127227]
[1757249580334,7.99,203.94,203.91,4.38127227]
[1757249580534,7.99,203.94,203.89,2.58]
[1757249580730,7.99,203.94,203.9,4.38130108]
[1757249581035,7.99,203.94,203.89,2.58]
[1757249581233,118.46,203.95,203.9,4.38150105]
[1757249581436,7.99,203.94,203.89,2.58]
[1757249581638,7.99,203.94,203.9,4.38150105]
[1757249581937,118.46,203.95,203.89,2.58]
[1757249582138,118.46,203.95,203.9,4.3811675]
[1757249582437,118.46,203.95,203.89,2.58]
[1757249582639,118.46,203.95,203.9,4.38092191]
[1757249582834,118.46,203.95,203.86,77.64155342]
[1757249582835,7.99,203.94,203.87,2.58]
[1757249583030,7.99,203.94,203.88,8.94167913]
[1757249583229,7.99,203.94,203.89,8.94167913]
[1757249583435,118.46,203.95,203.9,4.38092191]
[1757249583638,7.99,203.94,203.88,2.58]
[1757249583833,7.99,203.94,203.89,8.94127396]
[1757249584039,7.99,203.94,203.9,4.3807234]
[1757249584338,7.99,203.94,203.88,2.58]
[1757249584534,7.99,203.94,203.89,8.94095653]
[1757249584839,7.99,203.94,203.9,4.38056788]
[1757249585035,7.99,203.94,203.88,2.58]
[1757249585338,7.99,203.94,203.89,8.94143156]
[1757249585538,7.99,203.94,203.9,4.38080062]
[1757249585734,7.99,203.94,203.88,2.58]
[1757249585935,7.99,203.94,203.89,8.93060961]
[1757249586131,7.99,203.94,203.9,4.37017076]
[1757249586334,7.99,203.94,203.88,2.58]
[1757249586530,118.46,203.95,203.89,8.93035225]
[1757249586743,118.46,203.95,203.86,77.64155342]
[1757249586744,7.99,203.94,203.9,4.37004482]
[1757249586940,7.99,203.94,203.88,2.58]
[1757249587138,118.46,203.95,203.89,8.93035225]
[1757249587342,7.99,203.94,203.9,4.37004482]
[1757249587549,7.99,203.94,203.88,2.58]
[1757249587749,118.46,203.95,203.89,8.93016183]
[1757249588048,118.46,203.95,203.9,4.36995164]
[1757249588248,7.99,203.94,203.88,2.58]
[1757249588450,7.99,203.94,203.89,4.37000464]
[1757249588748,7.99,203.94,203.9,4.37000464]
[1757249589049,7.99,203.94,203.88,2.58]
[1757249589348,118.46,203.95,203.89,4.36979236]
[1757249589542,7.99,203.94,203.9,4.36979236]
[1757249589748,7.99,203.94,203.88,2.58]
[1757249589948,7.99,203.94,203.89,4.36969573]
[1757249590142,118.46,203.95,203.9,4.36969573]
[1757249590341,7.99,203.94,203.88,2.58]
[1757249590543,118.46,203.95,203.89,4.36969503]
[1757249590745,118.46,203.95,203.9,4.36969503]
[1757249591044,7.99,203.94,203.88,2.58]
[1757249591244,7.99,203.94,203.89,4.36979036]
[1757249591450,118.46,203.95,203.9,4.36979036]
[1757249591650,7.99,203.94,203.88,2.58]
[1757249591952,118.46,203.95,203.89,4.36972415]
[1757249592150,7.99,203.94,203.9,4.36972415]
[1757249592347,7.99,203.94,203.88,2.58]
[1757249592653,7.99,203.94,203.89,4.36978441]
[1757249592842,7.99,203.94,203.9,4.36978441]
[1757249593142,7.99,203.94,203.88,2.58]
[1757249593342,118.46,203.95,203.89,11.51009684]
[1757249593544,7.99,203.94,203.9,4.36991984]
[1757249593746,7.99,203.94,203.89,2.58]
[1757249594348,118.46,203.95,203.89,2.58]
[1757249594749,7.99,203.94,203.89,2.58]
[1757249594947,118.46,203.95,203.89,2.58]
[1757249595152,7.99,203.94,203.89,2.58]
[1757249595351,118.46,203.95,203.89,2.58]
[1757249595748,7.99,203.94,203.89,2.58]
[1757249596154,118.46,203.95,203.89,2.58]
[1757249596553,7.99,203.94,203.89,2.58]
[1757249596954,118.46,203.95,203.89,2.58]
[1757249597150,7.99,203.94,203.89,2.58]
[1757249597855,118.46,203.95,203.89,2.58]
[1757249598455,7.99,203.94,203.89,2.58]
[1757249598650,118.46,203.95,203.89,2.58]
[1757249599249,7.61,203.94,203.89,2.58]
[1757249599456,118.46,203.95,203.89,2.58]
[1757249599656,7.61,203.94,203.89,2.58]
[1757249599857,118.46,203.95,203.89,2.58]
[1757249600249,7.61,203.94,203.89,2.58]
[1757249600758,118.46,203.95,203.89,2.58]
[1757249600960,7.61,203.94,203.89,2.58]
[1757249601458,118.46,203.95,203.89,2.58]
[1757249601658,7.61,203.94,203.89,2.58]
[1757249603762,7.61,203.94,203.9,4.37161193]
[1757249603962,7.61,203.94,203.89,2.58]
[1757249604162,7.61,203.94,203.9,4.37161193]
[1757249604356,7.61,203.94,203.89,2.58]
[1757249604658,7.61,203.94,203.9,4.37166997]
[1757249604860,7.61,203.94,203.89,2.58]
[1757249605059,7.61,203.94,203.9,4.37135011]
[1757249605261,7.61,203.94,203.89,2.58]
[1757249605460,7.61,203.94,203.9,4.37174165]
[1757249605661,118.46,203.95,203.89,2.58]
[1757249605956,118.46,203.95,203.9,4.37174165]
[1757249606162,7.61,203.94,203.89,2.58]
[1757249606358,7.61,203.94,203.9,4.37180187]
[1757249606563,7.61,203.94,203.89,2.58]
[1757249606761,7.61,203.94,203.9,4.37182778]
[1757249606962,7.61,203.94,203.89,2.58]
[1757249607262,7.61,203.94,203.9,4.37182778]
[1757249607462,118.46,203.95,203.89,2.58]
[1757249607663,118.46,203.95,203.9,4.37192887]
[1757249607864,118.46,203.95,203.89,2.58]
[1757249608065,118.46,203.95,203.9,4.37107296]
[1757249608267,7.61,203.96,203.89,2.58]
[1757249608468,119.07218783,203.97,203.91,2.57]
[1757249608469,126.07,203.95,203.91,2.57]
[1757249608668,7.61,203.94,203.92,6.94118835]
[1757249608867,7.61,203.94,203.92,2.57]
[1757249619878,118.46,203.95,203.92,2.57]
[1757249620374,7.61,203.94,203.92,2.57]
[1757249621175,118.46,203.95,203.92,2.57]
[1757249621476,7.61,203.94,203.92,2.57]
[1757249621876,118.46,203.95,203.92,2.57]
[1757249622076,7.61,203.94,203.92,2.57]
[1757249623271,118.44,203.96,203.86,82.05535342]
[1757249623478,7.61,203.95,203.88,2.58]
[1757249623775,116.34,203.96,203.89,8.90715424]
[1757249623969,7.61,203.95,203.9,8.90715424]
[1757249624173,116.34,203.96,203.91,8.90715424]
[1757249624475,116.34,203.96,203.92,4.37039897]
[1757249624676,7.61,203.95,203.89,2.58]
[1757249624870,116.34,203.96,203.9,8.91391719]
[1757249625071,116.34,203.96,203.91,11.49391719]
[1757249625275,7.61,203.95,203.92,4.37049934]
[1757249625475,116.34,203.96,203.91,2.58]
[1757249625675,7.61,203.95,203.93,2.58]
[1757249625871,7.61,203.95,203.86,82.05535342]
[1757249626079,7.61,203.95,203.88,2.58]
[1757249626373,116.34,203.96,203.89,8.91381776]
[1757249626573,7.61,203.95,203.9,11.49381776]
[1757249626773,116.34,203.96,203.91,11.49381776]
[1757249627077,116.34,203.96,203.92,4.37045059]
[1757249627277,116.34,203.96,203.91,2.58]
[1757249627474,7.61,203.95,203.92,4.37033112]
[1757249627680,7.61,203.95,203.91,2.58]
[1757249627985,118.44,203.96,203.92,4.37033112]
[1757249628281,7.61,203.95,203.91,2.58]
[1757249628482,7.61,203.95,203.92,4.37008216]
[1757249628682,7.61,203.95,203.87,2.58]
[1757249628885,7.61,203.95,203.88,8.9149781]
[1757249629078,7.61,203.95,203.89,8.9149781]
[1757249629278,7.61,203.95,203.9,4.3710183]
[1757249629581,7.61,203.95,203.91,4.3710183]
[1757249629782,7.61,203.95,203.87,2.58]
[1757249630083,7.61,203.95,203.88,8.91508102]
[1757249630284,7.61,203.95,203.89,8.91508102]
[1757249630481,7.61,203.95,203.9,4.37106876]
[1757249630782,7.61,203.95,203.91,4.37106876]
[1757249631082,7.61,203.95,203.87,2.58]
[1757249631277,7.61,203.95,203.88,8.91518712]
[1757249631474,7.61,203.95,203.89,8.91518712]
[1757249631683,7.61,203.95,203.9,4.37112078]
[1757249631984,7.61,203.95,203.91,4.37112078]
[1757249632180,7.61,203.95,203.87,2.58]
[1757249632382,7.61,203.95,203.88,8.91528358]
[1757249632582,7.61,203.95,203.89,8.91528358]
[1757249632784,7.61,203.95,203.9,4.37116808]
[1757249632981,7.61,203.95,203.91,4.37116808]
[1757249633182,7.61,203.95,203.87,2.58]
[1757249633384,126.03,203.95,203.89,2.58]
[1757249633587,7.62,203.94,203.91,2.58]
[1757249634589,118.42,203.95,203.91,2.58]
[1757249635988,7.62,203.94,203.91,2.58]
[1757249636385,118.42,203.95,203.91,2.58]
[1757249636585,7.62,203.94,203.91,2.58]
[1757249636786,118.42,203.95,203.91,2.58]
[1757249637086,7.62,203.94,203.91,2.58]
[1757249637287,113.15885545,203.97,203.91,2.58]
[1757249637485,7.62,203.96,203.91,2.58]
[1757249637686,107.5,203.95,203.91,2.58]
[1757249637988,107.5,203.95,203.87,2.58]
[1757249638190,107.5,203.95,203.89,2.58]
[1757249638389,7.62,203.94,203.91,2.58]
[1757249638586,7.62,203.94,203.92,4.37119671]
[1757249638790,7.62,203.94,203.91,2.58]
[1757249638990,7.62,203.94,203.92,4.37048697]
[1757249639286,107.5,203.95,203.91,2.58]
[1757249639493,7.62,203.94,203.92,4.37070866]
[1757249639689,7.62,203.94,203.91,2.58]
[1757249639889,7.62,203.94,203.92,4.37070866]
[1757249640188,7.62,203.94,203.87,2.58]
[1757249640384,7.62,203.94,203.88,8.95625425]
[1757249640691,107.5,203.95,203.86,82.05545342]
[1757249640692,107.5,203.95,203.9,2.58]
[1757249640891,107.5,203.95,203.91,11.53625425]
[1757249641190,7.62,203.94,203.92,4.37052033]
[1757249641392,107.5,203.95,203.91,2.58]
[1757249641592,7.62,203.94,203.92,4.37287019]
[1757249641792,7.62,203.94,203.91,2.58]
[1757249641992,7.62,203.94,203.92,4.37287019]
[1757249642193,7.62,203.94,203.91,2.58]
[1757249642394,7.62,203.94,203.92,4.37282788]
[1757249642694,7.62,203.94,203.91,2.58]
[1757249642992,107.5,203.95,203.92,4.37288549]
[1757249643193,7.62,203.94,203.91,2.58]
[1757249643390,7.62,203.94,203.92,4.37285234]
[1757249643590,7.62,203.94,203.91,2.58]
[1757249643792,7.62,203.94,203.92,4.37292188]
[1757249643988,7.62,203.94,203.91,2.58]
[1757249644184,7.62,203.94,203.92,4.37292188]
[1757249644387,7.62,203.94,203.92,2.58]
[1757249646397,231.57885545,203.97,203.87,4.4137]
[1757249646696,7.62,203.96,203.89,2.58]
[1757249646897,7.62,203.96,203.9,8.95405915]
[1757249647096,7.62,203.96,203.91,8.95405915]
[1757249647397,231.57885545,203.97,203.92,4.3657717]
[1757249647589,7.62,203.96,203.89,2.58]
[1757249647787,7.62,203.96,203.9,8.95398632]
[1757249647988,7.62,203.96,203.91,8.95398632]
[1757249648192,7.62,203.96,203.92,4.36573619]
[1757249648497,7.62,203.96,203.9,2.58]
[1757249648697,231.57885545,203.97,203.91,8.95386511]
[1757249648897,7.62,203.96,203.92,4.36567709]
[1757249649092,7.62,203.96,203.9,2.58]
[1757249649293,7.62,203.96,203.91,8.95387357]
[1757249649494,231.57885545,203.97,203.92,4.36568121]
[1757249649694,7.62,203.96,203.9,2.58]
[1757249649894,231.57885545,203.97,203.91,8.95424805]
[1757249650096,7.62,203.96,203.92,4.3658638]
[1757249650296,7.62,203.96,203.9,2.58]
[1757249650496,231.57885545,203.97,203.91,8.95468825]
[1757249650696,231.57885545,203.97,203.92,4.36607843]
[1757249650896,7.62,203.96,203.9,2.58]
[1757249651098,7.62,203.96,203.91,8.95430239]
[1757249651296,231.57885545,203.97,203.92,4.36589034]
[1757249651495,7.62,203.96,203.9,2.58]
[1757249651691,7.62,203.96,203.91,8.95468163]
[1757249651999,231.57885545,203.97,203.92,4.36607525]
[1757249652201,7.62,203.96,203.9,2.58]
[1757249652500,231.57885545,203.97,203.91,8.95487446]
[1757249652702,231.57885545,203.97,203.92,4.36602651]
[1757249652899,7.62,203.96,203.9,2.58]
[1757249653101,231.57885545,203.97,203.91,8.95393137]
[1757249653297,113.15885545,203.97,203.92,4.36570944]
[1757249653499,7.62,203.96,203.9,2.58]
[1757249653696,7.62,203.96,203.91,8.95495008]
[1757249653905,231.57885545,203.97,203.92,8.95495008]
[1757249654100,7.62,203.96,203.93,6.94620614]
[1757249654402,113.15885545,203.97,203.93,6.94620614]
[1757249654403,231.57885545,203.97,203.93,2.58]
[1757249654595,7.62,203.96,203.93,2.58]
[1757249655001,231.57885545,203.97,203.93,2.58]
[1757249655403,7.62,203.96,203.89,2.58]
[1757249655597,231.57885545,203.97,203.9,8.95497461]
[1757249655808,7.62,203.96,203.91,8.95497461]
[1757249656001,231.57885545,203.97,203.92,11.53497461]
[1757249656207,231.57885545,203.97,203.93,4.36593161]
[1757249656507,231.57885545,203.97,203.92,2.58]
[1757249656703,7.62,203.96,203.93,4.36583806]
[1757249656906,231.57885545,203.97,203.92,2.58]
[1757249657206,7.62,203.96,203.93,4.36583806]
[1757249657401,231.57885545,203.97,203.92,2.58]
[1757249657603,7.62,203.96,203.93,4.36575039]
[1757249657806,7.62,203.96,203.92,2.58]
[1757249658008,7.62,203.96,203.93,4.36575039]
[1757249658204,231.57885545,203.97,203.92,2.58]
[1757249658401,231.57885545,203.97,203.93,4.36566805]
[1757249658707,7.62,203.96,203.92,2.58]
[1757249658907,7.62,203.96,203.93,4.36566805]
[1757249659109,231.57885545,203.97,203.92,2.58]
[1757249659309,7.89,203.96,203.93,4.36566805]
[1757249659499,231.57885545,203.97,203.92,2.58]
[1757249659704,231.57885545,203.97,203.93,4.36613]
[1757249659911,7.89,203.96,203.92,2.58]
[1757249660212,231.57885545,203.97,203.93,4.36613413]
[1757249660508,7.89,203.96,203.89,2.57]
[1757249660708,7.89,203.96,203.9,8.95524125]
[1757249660898,231.57885545,203.97,203.91,8.95524125]
[1757249661103,231.57885545,203.97,203.92,8.95524125]
[1757249661304,231.57885545,203.97,203.93,4.36606161]
[1757249661506,7.89,203.96,203.9,2.57]
[1757249661706,7.89,203.96,203.91,8.9551019]
[1757249661902,7.89,203.96,203.92,8.9551019]
[1757249662102,231.57885545,203.97,203.93,4.36599367]
[1757249662310,7.89,203.96,203.89,2.57]
[1757249662512,7.89,203.96,203.9,8.95385707]
[1757249662712,7.89,203.96,203.91,8.95385707]
[1757249662912,7.89,203.96,203.92,8.95385707]
[1757249663212,231.57885545,203.97,203.93,4.36538676]
[1757249663414,7.89,203.96,203.9,2.57]
[1757249663615,7.89,203.96,203.91,8.95372688]
[1757249663811,231.57885545,203.97,203.92,8.95372688]
[1757249664013,7.89,203.96,203.93,4.36532329]
[1757249664212,7.89,203.96,203.9,2.57]
[1757249664414,7.89,203.96,203.91,8.95361346]
[1757249664711,7.89,203.96,203.92,8.95361346]
[1757249664912,7.89,203.96,203.93,4.36526799]
[1757249665113,7.89,203.96,203.9,2.57]
[1757249665417,7.89,203.96,203.91,8.95361346]
[1757249665618,7.89,203.96,203.92,8.95361346]
[1757249665817,7.89,203.96,203.93,4.36526799]
[1757249666018,7.89,203.96,203.9,2.57]
[1757249666317,7.89,203.96,203.91,8.95351656]
[1757249666518,7.89,203.96,203.92,8.95351656]
[1757249666718,7.89,203.96,203.93,4.36522075]
[1757249666918,7.89,203.96,203.9,2.57]
[1757249667114,7.89,203.96,203.91,8.9534106]
[1757249667417,7.89,203.96,203.92,8.9534106]
[1757249667717,231.57885545,203.97,203.93,4.36516909]
[1757249667918,7.89,203.96,203.89,2.57]
[1757249668118,7.89,203.96,203.9,8.95332115]
[1757249668421,231.57885545,203.97,203.91,8.95332115]
[1757249668718,7.89,203.96,203.92,8.95332115]
[1757249669018,231.57885545,203.97,203.93,4.36512548]
[1757249669317,7.89,203.96,203.89,2.57]
[1757249669518,7.89,203.96,203.9,8.95316404]
[1757249669711,7.89,203.96,203.91,8.95316404]
[1757249669909,231.57885545,203.97,203.92,8.95316404]
[1757249670118,7.89,203.96,203.93,4.36504888]
[1757249670320,231.57885545,203.97,203.91,2.57]
[1757249670621,231.57885545,203.97,203.92,8.95309621]
[1757249670921,231.57885545,203.97,203.93,4.36501581]
[1757249671221,231.57885545,203.97,203.91,2.57]
[1757249671422,7.89,203.96,203.92,8.9530438]
[1757249671622,7.89,203.96,203.93,4.36499026]
[1757249671822,231.57885545,203.97,203.91,2.57]
[1757249672023,7.89,203.96,203.92,8.9530438]
[1757249672220,7.89,203.96,203.93,4.36499026]
[1757249672421,7.89,203.96,203.91,2.57]
[1757249672722,231.57885545,203.97,203.92,8.95298129]
[1757249672921,7.89,203.96,203.93,4.36495978]
[1757249673115,7.89,203.96,203.91,2.57]
[1757249673318,231.57885545,203.97,203.92,8.95298129]
[1757249673514,231.57885545,203.97,203.93,4.36495978]
[1757249673824,7.89,203.96,203.91,2.57]
[1757249674024,231.57885545,203.97,203.92,8.95291785]
[1757249674224,7.89,203.96,203.93,4.36492885]
[1757249674524,231.57885545,203.97,203.91,2.57]
[1757249674724,7.89,203.96,203.92,8.9533927]
[1757249675024,7.89,203.96,203.93,4.36516036]
[1757249675219,231.57885545,203.97,203.91,2.57]
[1757249675424,7.89,203.96,203.92,8.94989871]
[1757249675724,231.57885545,203.97,203.93,4.36138252]
[1757249675924,231.57885545,203.97,203.91,2.57]
[1757249676124,231.57885545,203.97,203.92,8.94989871]
[1757249676324,231.57885545,203.97,203.93,4.36138252]
[1757249676525,231.57885545,203.97,203.86,82.05535342]
[1757249676725,231.57885545,203.97,203.87,8.95053575]
[1757249676925,231.57885545,203.97,203.88,8.95053575]
[1757249677127,231.57885545,203.97,203.89,8.95053575]
[1757249677323,231.57885545,203.97,203.9,8.95053575]
[1757249677531,231.57885545,203.97,203.91,8.95053575]
[1757249677723,231.57885545,203.97,203.92,8.95053575]
[1757249678024,231.57885545,203.97,203.86,77.64155342]
[1757249678225,231.57885545,203.97,203.87,8.95272052]
[1757249678426,231.57885545,203.97,203.88,8.95272052]
[1757249678726,231.57885545,203.97,203.89,8.95272052]
[1757249678928,231.57885545,203.97,203.9,8.95272052]
[1757249679225,231.57885545,203.97,203.91,4.36275728]
[1757249679426,231.57885545,203.97,203.86,77.64155342]
[1757249679626,231.57885545,203.97,203.87,8.95525881]
[1757249679826,231.57885545,203.97,203.88,8.95525881]
[1757249680027,231.57885545,203.97,203.89,8.95525881]
[1757249680225,231.57885545,203.97,203.9,4.36399364]
[1757249680429,231.57885545,203.97,203.86,77.64155342]
[1757249680729,231.57885545,203.97,203.87,8.95434795]
[1757249681028,231.57885545,203.97,203.88,8.95434795]
[1757249681228,231.57885545,203.97,203.89,8.95434795]
[1757249681435,231.57885545,203.97,203.9,4.36354972]
[1757249681729,231.57885545,203.97,203.83,4.4145]
[1757249681930,231.57885545,203.97,203.84,8.95323096]
[1757249682129,231.57885545,203.97,203.85,8.95323096]
[1757249682330,231.57885545,203.97,203.86,8.95323096]
[1757249682628,231.57885545,203.97,203.87,8.95323096]
[1757249682827,231.57885545,203.97,203.88,8.95323096]
[1757249683027,231.57885545,203.97,203.89,8.95323096]
[1757249683230,231.57885545,203.97,203.9,4.3630054]
[1757249683528,231.57885545,203.97,203.85,75.92620038]
[1757249683729,231.57885545,203.97,203.86,8.95103026]
[1757249683928,231.57885545,203.97,203.87,8.95103026]
[1757249684229,231.57885545,203.97,203.88,8.95103026]
[1757249684532,231.57885545,203.97,203.89,4.36193298]
[1757249684828,231.57885545,203.97,203.85,75.92620038]
[1757249685028,231.57885545,203.97,203.86,8.95253571]
[1757249685228,231.57885545,203.97,203.87,8.95253571]
[1757249685430,231.57885545,203.97,203.88,8.95253571]
[1757249685730,231.57885545,203.97,203.89,4.36142573]
[1757249685930,231.57885545,203.97,203.85,75.92620038]
[1757249686130,231.57885545,203.97,203.86,8.95175651]
[1757249686329,231.57885545,203.97,203.87,8.95175651]
[1757249686530,231.57885545,203.97,203.88,8.95175651]
[1757249686730,231.57885545,203.97,203.89,4.36104613]
[1757249686931,231.57885545,203.97,203.85,75.92620038]
[1757249687132,231.57885545,203.97,203.86,8.95092362]
[1757249687331,231.57885545,203.97,203.87,8.95092362]
[1757249687531,231.57885545,203.97,203.88,8.95092362]
[1757249687733,231.57885545,203.97,203.89,4.36064036]
[1757249687923,231.57885545,203.97,203.85,75.92620038]
[1757249688123,231.57885545,203.97,203.86,8.95017349]
[1757249688324,231.57885545,203.97,203.87,8.95017349]
[1757249688524,231.57885545,203.97,203.88,8.95017349]
[1757249688733,231.57885545,203.97,203.85,75.92620038]
[1757249688933,231.57885545,203.97,203.86,8.94949475]
[1757249689232,231.57885545,203.97,203.87,8.94949475]
[1757249689531,231.57885545,203.97,203.88,8.94949475]
[1757249689734,231.57885545,203.97,203.85,75.92620038]
[1757249689933,231.57885545,203.97,203.86,8.94887888]
[1757249690133,231.57885545,203.97,203.87,8.94887888]
[1757249690333,231.57885545,203.97,203.88,8.94887888]
[1757249690535,231.57885545,203.97,203.85,75.92620038]
[1757249690734,231.57885545,203.97,203.86,8.94831927]
[1757249690929,231.57885545,203.97,203.87,8.94831927]
[1757249691132,231.57885545,203.97,203.88,8.94831927]
[1757249691432,231.57885545,203.97,203.85,75.92620038]
[1757249691628,231.57885545,203.97,203.86,8.94781069]
[1757249691836,231.57885545,203.97,203.87,8.94781069]
[1757249692036,231.57885545,203.97,203.88,8.94781069]
[1757249692236,231.57885545,203.97,203.85,75.92620038]
[1757249692440,231.57885545,203.97,203.86,8.94734894]
[1757249692637,231.57885545,203.97,203.87,8.94734894]
[1757249692936,231.57885545,203.97,203.88,8.94734894]
[1757249693136,231.57885545,203.97,203.85,75.92620038]
[1757249693331,231.57885545,203.97,203.86,8.9471663]
[1757249693534,231.57885545,203.97,203.87,8.9471663]
[1757249693736,231.57885545,203.97,203.88,8.94704544]
[1757249693935,231.57885545,203.97,203.89,4.3588099]
[1757249694134,231.57885545,203.97,203.85,75.92620038]
[1757249694333,231.57885545,203.97,203.86,8.9466421]
[1757249694539,231.57885545,203.97,203.87,8.9466421]
[1757249694839,231.57885545,203.97,203.88,8.9466421]
[1757249695034,231.57885545,203.97,203.89,4.35851108]
[1757249695230,231.57885545,203.97,203.85,75.92620038]
[1757249695432,231.57885545,203.97,203.86,8.94621347]
[1757249695636,231.57885545,203.97,203.87,8.94621347]
[1757249695837,231.57885545,203.97,203.88,8.94621347]
[1757249696037,231.57885545,203.97,203.85,75.92620038]
[1757249696038,231.57885545,203.97,203.89,4.35834571]
[1757249696240,231.57885545,203.97,203.85,75.92620038]
[1757249696440,231.57885545,203.97,203.86,8.94598433]
[1757249696639,231.57885545,203.97,203.87,8.94598433]
[1757249696835,231.57885545,203.97,203.88,8.94598433]
[1757249697034,231.57885545,203.97,203.89,4.35823408]
[1757249697336,231.57885545,203.97,203.85,75.92620038]
[1757249697531,231.57885545,203.97,203.86,8.94579758]
[1757249697835,231.57885545,203.97,203.87,8.94579758]
[1757249698034,231.57885545,203.97,203.88,8.94579758]
[1757249698233,231.57885545,203.97,203.85,75.92620038]
[1757249698432,231.57885545,203.97,203.86,8.94657012]
[1757249698641,231.57885545,203.97,203.87,8.94657012]
[1757249698841,231.57885545,203.97,203.88,8.94657012]
[1757249699142,231.57885545,203.97,203.85,75.92620038]
[1757249699342,231.57885545,203.97,203.86,8.94636054]
[1757249699544,231.57885545,203.97,203.87,8.94636054]
[1757249699735,231.57885545,203.97,203.88,8.94636054]
[1757249699934,231.57885545,203.97,203.85,75.92620038]
[1757249700144,231.57885545,203.97,203.86,8.94636054]
[1757249700338,231.57885545,203.97,203.87,8.94636054]
[1757249700539,231.57885545,203.97,203.88,8.94636054]
[1757249700739,113.15885545,203.97,203.85,75.92620038]
[1757249700935,113.15885545,203.97,203.86,8.94790677]
[1757249701244,118.38,203.96,203.87,8.94790677]
[1757249701541,118.38,203.96,203.88,8.94790677]
[1757249701842,118.38,203.96,203.85,75.92620038]
[1757249702043,118.38,203.96,203.86,8.94821582]
[1757249702243,118.38,203.96,203.87,8.94821582]
[1757249702542,118.38,203.96,203.88,8.94821582]
[1757249702742,118.38,203.96,203.85,75.92620038]
[1757249702943,118.38,203.96,203.86,8.94972606]
[1757249703139,118.38,203.96,203.87,8.94972606]
[1757249703335,118.38,203.96,203.88,4.3600569]
[1757249703544,118.38,203.96,203.85,75.92620038]